Cogmind - Beta 11 @@@ ROGUE MODE // 2022.03.23 @ 11:26:28 Player: Photonicus Result: Destroyed by G-34 Mercenary with Small Laser Performance ------------- Evolutions (1) 500 Regions Visited (3) 600 Robots Destroyed (36) 180 Value Destroyed (545) 545 Prototype IDs (0) 0 Alien Tech Used (0) 0 Bonus (0) 0 TOTAL SCORE: 1825 Bonus ------- None Cogmind --------- Core Integrity 0/400 Matter 246/300 Energy 23/100 System Corruption 0% Temperature Warm (141) Movement Core (50) Location -9/Storage Parts ------- > --- POWER (1) -------- (None) > --- PROPULSION (2) --- (None) > --- UTILITY (3) ------ Targeting Computer > --- WEAPON (3) ------- Beam Rifle > --- INVENTORY (5) ---- Small Battery (100) Seismic Detector Peak State ------------ > --- POWER ------------ Ion Engine > --- PROPULSION ------- Aluminum Leg Aluminum Leg > --- UTILITY ---------- Large Storage Unit Large Storage Unit Improved Terrain Scanner > --- WEAPON ----------- Beam Cannon Assault Rifle Assault Rifle > --- INVENTORY -------- Ion Engine Light Treads Light Treads Aluminum Leg Wheel Wheel Wheel Wheel Small Battery Seismic Detector Targeting Computer Welding Torch [Rating: 12] Favorites ----------- Power Ion Engine Engine Ion Engine Propulsion Aluminum Leg Leg Aluminum Leg Utility Large Storage Unit Device Improved Terrain Scanner Storage Large Storage Unit Processor Targeting Computer Weapon Assault Rifle Energy Gun Small Laser Energy Cannon Beam Cannon Ballistic Gun Assault Rifle Build | -11 -10 -9 -9 ------- Run | Scr Mat Mat Sto Slots Evolved 2 | . . 2 . Power . | . . . . Propulsion . | . . . . Utility 1 | . . 1 . Weapon 1 | . . 1 . Parts Attached 21 | 9 3 2 7 Power 2 | 1 . . 1 Engine 2 | 1 . . 1 Core . | . . . . Reactor . | . . . . Propulsion 3 | 2 . . 1 Treads . | . . . . Leg 3 | 2 . . 1 Wheel . | . . . . Hover . | . . . . Flight . | . . . . Utility 7 | 3 1 2 1 Device 3 | 2 . 1 . Storage 3 | 1 1 1 . Processor 1 | . . . 1 Hackware . | . . . . Protection . | . . . . Artifact . | . . . . Weapon 9 | 3 2 . 4 Energy Gun 3 | 1 . . 2 Energy Cannon 1 | . . . 1 Ballistic Gun 5 | 2 2 . 1 Ballistic Cannon . | . . . . Launcher . | . . . . Special Weapon . | . . . . Impact Weapon . | . . . . Slashing Weapon . | . . . . Piercing Weapon . | . . . . Special Melee Weapon . | . . . . Unidentified Prototypes . | . . . . Parts Lost 10 | . . . 10 Power 2 | . . . 2 Propulsion 3 | . . . 3 Utility 1 | . . . 1 Weapon 4 | . . . 4 Highest Loss Streak 9 | . . . 9 To Critical Strikes . | . . . . Average Slot Usage (%) 92 | . 100 88 88 Engine 11 | . 14 11 9 Leg 22 | . 28 22 17 Device 11 | . 14 11 8 Storage 18 | . 14 22 20 Energy Cannon 3 | . . . 8 Ballistic Gun 22 | . 27 22 19 Naked Turns . | . . . . Heaviest Build 54 | 14 30 50 54 Greatest Support 20 | 20 20 20 20 Greatest Overweight (x) 14 | . 1 2 14 Average Overweight (x) . | . . 2 2 Largest Inventory Capacity 15 | 8 15 15 15 Average Capacity 12 | 7 12 15 14 Most Carried 12 | 8 11 12 12 Average Carried 8 | 7 8 10 6 Final Capacity 15 | 8 15 15 5 Final Carried 12 | 8 11 12 2 Class Distribution -------------------- 79% | Mutant 20% | Skirmisher Dominant Class ---------------- Mutant | -10/Materials Mutant | -9/Materials Skirmisher | -9/Storage Resources | -11 -10 -9 -9 ----------- Run | Scr Mat Mat Sto Matter Collected 686 | 328 152 94 112 Remotely . | . . . . Salvage Created 1227 | 257 441 52 477 Parts 86 | 18 37 3 28 Haulers Intercepted . | . . . . Recyclers Shooed . | . . . . Parts Field Recycled . | . . . . Retrieved Matter . | . . . . Parts Self-Destructed . | . . . . Prevented . | . . . . Kills | -11 -10 -9 -9 ------- Run | Scr Mat Mat Sto Combat Hostiles Destroyed 14 | . 5 1 8 Guns 12 | . 5 1 6 Cannons 2 | . . . 2 Classes Destroyed 8 | 3 4 1 . Worker 7 | 2 3 . 2 Builder 2 | . 2 . . Tunneler 7 | 7 . . . Recycler 3 | 1 2 . . Watcher 3 | . 2 . 1 Swarmer 4 | . 3 . 1 Grunt 7 | . 2 . 5 Sentry 3 | . . 1 2 Best Kill Streak 6 | 2 5 1 6 Combat Bots Only 3 | . 3 1 3 Max Kills in Single Turn 2 | 1 2 1 1 Gunslinging . | . . . . Exploded . | . . . . Melee . | . . . . Uniques/NPCs Destroyed . | . . . . Combat | -11 -10 -9 -9 -------- Run | Scr Mat Mat Sto Damage Taken 1434 | . 127 136 1171 Core 450 | . 43 27 380 Absorbed by Shields . | . . . . Core Remaining (%) 91 | 100 82 . . Volleys Fired 88 | 25 24 10 29 Largest 3 | 2 2 2 3 Hottest 112 | 60 40 40 112 Shots Fired 192 | 50 48 20 74 Gun 173 | 50 48 20 55 Cannon 19 | . . . 19 Launcher . | . . . . Special . | . . . . Kinetic 139 | 25 48 20 46 Thermal 53 | 25 . . 28 Explosive . | . . . . Electromagnetic . | . . . . Robot Hit Streak 7 | 7 7 3 6 Robot Miss Streak 4 | 3 3 3 4 Penetration Max . | . . . . Secondary Targets 2 | . 1 . 1 Max Gunslinging Chain 1 | . 1 . 1 Shots Hit Robots 105 | 31 25 8 41 Core Hits 49 | 12 17 3 17 Critical Kills . | . . . . Critical Parts Destroyed 1 | 1 . . . Critical Strikes 1 | 1 . . . Destroy 1 | 1 . . . Melee Attacks . | . . . . Impact . | . . . . Slashing . | . . . . Piercing . | . . . . Sneak Attacks . | . . . . Combat Hostiles . | . . . . Follow-up Attacks . | . . . . Damage Inflicted 1500 | 423 331 133 613 Guns 1301 | 403 327 133 438 Cannons 175 | . . . 175 Explosions . | . . . . Melee . | . . . . Ramming 24 | 20 4 . . Kinetic 1053 | 255 327 133 338 Thermal 423 | 148 . . 275 Explosive . | . . . . Electromagnetic . | . . . . Impact . | . . . . Slashing . | . . . . Piercing . | . . . . Highest Corruption . | . . . . Average Corruption . | . . . . Corruption Purged . | . . . . Corruption Blocked . | . . . . Overload Shots . | . . . . Overflow Damage . | . . . . Projectiles . | . . . . Explosions . | . . . . Melee . | . . . . Knockbacks . | . . . . Impact . | . . . . Kinetic . | . . . . Secondary . | . . . . Self-Inflicted Damage . | . . . . Shots . | . . . . Rammed . | . . . . Targets Rammed 12 | 11 1 . . Kicked 12 | 11 1 . . Crushed . | . . . . Highest Temperature 205 | . . . 205 Average Temperature 78 | . . . 78 Received Heat Transfer 456 | . 30 18 408 Siege Activations . | . . . . Robots Corrupted . | . . . . Combat Hostiles . | . . . . Parts Fried . | . . . . Impact Corruptions . | . . . . Robots Melted . | . . . . Combat Hostiles . | . . . . Parts Melted . | . . . . Heat Transferred 954 | 325 . . 629 Parts Sabotaged . | . . . . Parts Stolen . | . . . . Parts Stripped . | . . . . Power Chain Reactions . | . . . . Missiles Intercepted . | . . . . Alert | -11 -10 -9 -9 ------- Run | Scr Mat Mat Sto Peak Influence 213 | 50 213 51 162 Initial 32 | . 32 6 21 Average 64 | 23 126 13 73 Maximum Alert Level 1 | . 1 . . Low Security (%) 95 | 100 85 100 100 Level 1 4 | . 14 . . Level 2 . | . . . . Level 3 . | . . . . Level 4 . | . . . . Level 5 . | . . . . High Security . | . . . . Max Security . | . . . . Squads Dispatched 2 | . . . 2 Investigation . | . . . . Extermination . | . . . . Reinforcement 2 | . . . 2 Assault . | . . . . Garrison . | . . . . Intercept . | . . . . Searches Triggered . | . . . . Construction Impeded . | . . . . Haulers Reinforced . | . . . . Active Scanning Responses . | . . . . Cargo Convoy Interrupts . | . . . . Stealth | -11 -10 -9 -9 --------- Run | Scr Mat Mat Sto Distress Signals 3 | . 1 1 1 Communications Jammed . | . . . . Distress Signals . | . . . . Times Spotted 25 | . 7 2 16 Peak Tracking Total 8 | . 3 2 8 Tactical Retreats 1 | . . . 1 Traps | -11 -10 -9 -9 ------- Run | Scr Mat Mat Sto Traps Triggered 1 | . 1 . . Indirectly . | . . . . Trap Hack Attempts . | . . . . Triggered . | . . . . Disarmed . | . . . . Reprogrammed . | . . . . Reused . | . . . . Traps Extracted . | . . . . Installed . | . . . . Triggered . | . . . . Machines | -11 -10 -9 -9 ---------- Run | Scr Mat Mat Sto Machines Disabled . | . . . . Max in Single Turn . | . . . . Machines Sabotaged . | . . . . Garrisons Compromised . | . . . . Overloaded Fab Kills . | . . . . Hacking | -11 -10 -9 -9 --------- Run | Scr Mat Mat Sto Machines Accessed 7 | . 4 . 3 Terminals 4 | . 4 . . Fabricators . | . . . . Repair Stations 1 | . . . 1 Recycling Units 1 | . . . 1 Scanalyzers . | . . . . Garrison Access 1 | . . . 1 Total Hacks 17 | . 8 . 9 Successful 16 | . 7 . 9 Failed 1 | . 1 . . Catastrophic . | . . . . Database Lockouts . | . . . . Manual . | . . . . Terminals 8 | . 8 . . Fabricators . | . . . . Repair Stations 1 | . . . 1 Recycling Units 7 | . . . 7 Scanalyzers . | . . . . Garrison Access 1 | . . . 1 Terminal Hacks 7 | . 7 . . Record 2 | . 2 . . Alert Level 3 | . 3 . . Locate Traps 1 | . 1 . . Maintenance Status 1 | . 1 . . Fabricator Hacks . | . . . . Repair Station Hacks 1 | . . . 1 Scan Component 1 | . . . 1 Recycling Unit Hacks 7 | . . . 7 Recycle Component 7 | . . . 7 Scanalyzer . | . . . . Garrison Access Hacks 1 | . . . 1 Unlock Access 1 | . . . 1 Unauthorized Hacks . | . . . . Terminals . | . . . . Fabricators . | . . . . Repair Stations . | . . . . Recycling Units . | . . . . Scanalyzers . | . . . . Garrison Access . | . . . . Data Cores Recovered . | . . . . Used . | . . . . Hacking Detections 3 | . 3 . . Full Trace Events . | . . . . Feedback Events . | . . . . Feedback Blocked . | . . . . Robot Schematics Acquired . | . . . . Robots Built . | . . . . Authchips . | . . . . Time . | . . . . Total Robot Build Rating . | . . . . Part Schematics Acquired . | . . . . Parts Built . | . . . . Authchips . | . . . . Time . | . . . . Total Part Build Rating . | . . . . Parts Repaired . | . . . . Time . | . . . . Parts Recycled 7 | . . . 7 Recycled Matter . | . . . . Retrieved Matter . | . . . . Retrieved Components . | . . . . Parts Scanalyzed . | . . . . Part Schematics Acquired . | . . . . Parts Damaged . | . . . . Bothacking | -11 -10 -9 -9 ------------ Run | Scr Mat Mat Sto Used RIF Installer . | . . . . Robots Hacked . | . . . . Non-combat . | . . . . Combat . | . . . . Robot Hacks Applied . | . . . . Relay Couplers Released . | . . . . Fabnet Peak Effective % . | . . . . Robots Rewired . | . . . . Allies Hacked . | . . . . Hacks Repelled . | . . . . Allies | -11 -10 -9 -9 -------- Run | Scr Mat Mat Sto Total Allies . | . . . . Largest Group . | . . . . Highest-Rated Group . | . . . . Highest-Rated Ally . | . . . . Total Orders . | . . . . Ally Attacks . | . . . . Total Damage . | . . . . Kills . | . . . . Allies Corrupted . | . . . . Allies Melted . | . . . . Intel | -11 -10 -9 -9 ------- Run | Scr Mat Mat Sto Robot Analysis Total . | . . . . Derelict Logs Recovered . | . . . . Drone Launches . | . . . . Drone Recoveries . | . . . . Exploration | -11 -10 -9 -9 ------------- Run | Scr Mat Mat Sto Turns Passed 1536 | 397 433 290 416 Spaces Moved 691 | 247 226 99 119 Core 25 | 16 . . 9 Treads . | . . . . Legs 666 | 231 226 99 110 Wheels . | . . . . Hover . | . . . . Flight . | . . . . Fastest Speed 50 | 50 120 260 50 Average Speed 174 | 115 155 260 265 Slowest Speed 750 | 120 190 260 750 Overloaded Moves . | . . . . Propulsion Burnouts . | . . . . Robots Hopped . | . . . . Cave-ins Triggered . | . . . . Exploration Rate (%) 22 | 12 42 15 21 Regions Visited 3 Branch Regions 1 Pre-discovered Areas . | . . . . Known Exits Taken . | . . . . Unknown Exits Taken 3 | 1 1 1 . Scrap Searched . | . . . . Spaces Dug . | . . . . Terrain Destroyed . | . . . . Melee . | . . . . Projectile . | . . . . AOE . | . . . . Terrain Rammed . | . . . . Walls Destroyed . | . . . . Machines Disabled . | . . . . Actions | -11 -10 -9 -9 --------- Run | Scr Mat Mat Sto Total 838 | 304 262 112 160 Wait . | . . . . Move 688 | 246 225 98 119 Hop . | . . . . Pick Up 21 | 11 6 2 2 Fast Attach 8 | 5 1 . 2 Attach 9 | 2 1 1 5 Detach . | . . . . Swap 4 | 2 1 1 . Drop 8 | 2 3 . 3 Fire 88 | 25 24 10 29 Melee . | . . . . Ram . | . . . . Kick 12 | 11 1 . . Crush . | . . . . Escape Stasis . | . . . . Rewire . | . . . . Trap . | . . . . Miscellaneous . | . . . . Route ------- -11/Scrapyard -10/Materials -9/Materials -9/Storage (discovered 1 exit: Gar) History --------- Turn | Location | Event 17 | -11/Scrapyard | Discovered new exit (range 15) 398 | -11/Scrapyard | Entered Materials 399 | -10/Materials | Build established: Mutant 750 | -10/Materials | Discovered new exit (range 15) 831 | -10/Materials | Entered another Materials area 831 | -9/Materials | Evolved 2 slots: Utility x1, Weapon x1 1064 | -9/Materials | Discovered new exit (range 15) 1121 | -9/Materials | Entered Storage 1283 | -9/Storage | Identified exit to Garrison 1449 | -9/Storage | Build established: Skirmisher 1507 | -9/Storage | Core integrity fell below 50% 1526 | -9/Storage | Core integrity fell below 20% 1528 | -9/Storage | Lost 9 parts (2p3n1u3w) 1537 | -9/Storage | Destroyed by G-34 Mercenary with Small Laser Last Messages --------------- 01459_ K-01 Serf collects debris. 01461_ R-06 Scavenger collects Hover Unit. 01461_ K-01 Serf cleans the Storage Shell. 01464_ R-06 Scavenger collects Wheel. 01476_ Beam Cannon destroyed. 01482_ Ion Engine destroyed. 01486_ G-34 Mercenary destroyed. 01486_ Switching to secondary target: G-34 Mercenary. 01489_ Hvy. Assault Rifle destroyed. 01491_ Assault Rifle destroyed. 01493_ Aluminum Leg destroyed. 01497_ Ion Engine destroyed. 01499_ G-34 Mercenary destroyed. 01504_ K-01 Serf collects debris. 01515_ Dropped Lrg. Storage Unit. 01517_ U-05 Engineer builds a Door. 01518_ Acquired Beam Rifle. 01529_ G-34 Mercenary destroyed. 01529_ Beam Rifle destroyed. 01533_ S-10 Pest destroyed. Map ----- +----------------------------------------------------+ | | | | | | | | | | | | | | | | | | | | | | | ##??#??#??????????????#??????????????????????????? | | ????? ???????????????????????????????????????????? | | ????? ??????????????#????????????????????????????? | | ?# ???????????????#??????????????????????????????? | | ???? ? ?????"??#?????????????????????????????????? | | #? "??????????#?????????#????????????????????????? | | ????"" ??????????????????????????????????????????? | | ?? "?? ??? ?????#???#????#?##????????????????????? | | ????? ?? ????????#######????#????????????????????? | | ######+########### #?#???????#???????????????? | | ##########????????????????? | | % # #????????????????? | | % # #????????????????? | | ###+############## # #????????????????? | | ####??#??## ##[@ #????????????????? | | """ ""##??#??## ##[ #????????????????? | | """ Y"#??#????# # =% #????????????????? | | """ ""#?##????# ## %[ #????????????????? | | ###???????# ## *s*[=#? ??????????????? | | """ ##????#???# ## !!%#??T??????#??????? | | """ #???#???#?# #####g##+######## #??????? | | """ #???????#?# = ! ^^ #??????? | | #?????#???# %= % *^% +??????? | | ##">"####?????????# [ =% !^^= #??????? | | ?#"G"##???#????#?##########+########### #??????? | | ?#"""##??????????????????# %% ????????????#??????? | | ?#####???????#??? ???????# """"??????????????????? | | ?????????#??#???? ? ?????# ??????????????????????? | | ????????????##?T?????????#!? ????????????????????? | | ???????#?????????????????#="????????#????????????? | | ? ?? ???????#????????????# ????????#?????????????? | | ?????????????????????????# ??????????????????????? | | ???????????????#?????????#???????????????????????? | | ???"??????????????????? ?????????????????????????? | | "????????????????????????????????????????????????? | | ???????????? ????????????????????????????????????? | | ???????????????????? ????????????????????????????? | | ?????????????????????????????????????????????????? | | ?????????????????????????????????????????????????? | +----------------------------------------------------+ Best States ------------- Heat Dissipation 28 Energy Generation 10 Energy Capacity 250 Matter Stores 300 Matter Capacity 300 Sight Range 16 Terrain Scan Range 16 Terrain Scan Density 10 Evasion (%) 55 Targeting Accuracy 5 Item Schematics ----------------- None Robot Schematics ------------------ None Fabricated ------------ Nothing Alien Tech Used ----------------- None Achievements -------------- None Challenges ------------ None Game ------ Seed NodeScatterExpander Manual? 0 Play Time 00:23:31 Cumulative 57.6 hours Start 2022.03.23 @ 11:03:01 End 2022.03.23 @ 11:26:28 Sessions 1 Manual Loads 0 Difficulty Rogue Special Mode None Game No. 30 Rogue 1 Adventurer 29 Explorer 0 Win Type - Total 1 Types 1/0/0/0/0/0/0/0/0 Lore% 11 Gallery% 35 Achievement% 29 Wizard Run 0 Options --------- ASCII 0 Keyboard 0 Movement Mouse Keybinds 0 Fullscreen 1 Font 18/SmallcapsGlow Map View 76x50 Tactical HUD 1 Map Filters NONE Filters NONE Steam 1 RUN: ffd2aac3-72ad-4130-a596-131e5655d8a4